Cogmind - Beta 11 @@@ ROGUE MODE // 2022.03.29 @ 02:08:41 Player: Infomantis Result: Destroyed by H-66 Slayer with Gauss Rifle Performance ------------- Evolutions (1) 500 Regions Visited (5) 1000 Robots Destroyed (19) 95 Value Destroyed (680) 680 Prototype IDs (6) 120 Alien Tech Used (0) 0 Bonus (485) 485 TOTAL SCORE: 2880 Bonus ------- Follower Combat Kills 242 Met Imprinter 300 Friendly Fire -57 Cogmind --------- Core Integrity 0/400 Matter 300/300 Energy 240/240 System Corruption 0% Temperature Cool (0) Movement Walking (190) Ox1 Location -6/Proximity Caves Parts ------- > --- POWER (1) -------- Nuclear Core > --- PROPULSION (3) --- Carbon-fiber Leg > --- UTILITY (3) ------ Improved Heat Sink Medium Storage Unit Improved Targeting Computer > --- WEAPON (2) ------- Plasma Rifle Plasma Rifle > --- INVENTORY (10) --- Compact Wheel Improved Heat Sink Layered Light Armor Plating Hacking Drone Bay (1/1) Plasma Rifle Plasma Rifle Beamcaster Assault Cannon CR-A16's Pointy Stick GAL Module Peak State ------------ > --- POWER ------------ Light Ion Engine > --- PROPULSION ------- Carbon-fiber Leg Carbon-fiber Leg Carbon-fiber Leg > --- UTILITY ---------- Medium Storage Unit Improved Targeting Computer Hacking Drone Bay > --- WEAPON ----------- Field Laser Assault Cannon > --- INVENTORY -------- Nuclear Core Carbon-fiber Leg Compact Wheel Heat Sink Layered Light Armor Plating Field Laser Assault Cannon Heavy Missile Launcher CR-A16's Pointy Stick GAL Module [Rating: 31] Favorites ----------- Power Light Ion Engine Engine Light Ion Engine Power Core Nuclear Core Propulsion Carbon-fiber Leg Treads Light Treads Leg Carbon-fiber Leg Utility Improved Targeting Computer Device Heat Sink Storage Medium Storage Unit Processor Improved Targeting Computer Weapon Field Laser Energy Gun Field Laser Ballistic Gun Light Assault Rifle Ballistic Cannon Assault Cannon Launcher Heavy Missile Launcher Piercing Weapon CR-A16's Pointy Stick Build | -11 -10 -9 -9 -7 -6 ------- Run | Scr Mat Mat Min Zio Pro Slots Evolved 2 | . . 2 . . . Power . | . . . . . . Propulsion 1 | . . 1 . . . Utility 1 | . . 1 . . . Weapon . | . . . . . . Parts Attached 36 | 7 . 11 1 4 13 Power 5 | 1 . 1 . . 3 Engine 3 | 1 . 1 . . 1 Core 2 | . . . . . 2 Reactor . | . . . . . . Propulsion 9 | 2 . 5 . . 2 Treads 2 | . . 2 . . . Leg 7 | 2 . 3 . . 2 Wheel . | . . . . . . Hover . | . . . . . . Flight . | . . . . . . Utility 12 | 2 . 3 1 4 2 Device 9 | 1 . 2 . 4 2 Storage 2 | 1 . . 1 . . Processor 1 | . . 1 . . . Hackware . | . . . . . . Protection . | . . . . . . Artifact . | . . . . . . Weapon 10 | 2 . 2 . . 6 Energy Gun 6 | 1 . 1 . . 4 Energy Cannon . | . . . . . . Ballistic Gun 1 | 1 . . . . . Ballistic Cannon 1 | . . 1 . . . Launcher 1 | . . . . . 1 Special Weapon . | . . . . . . Impact Weapon . | . . . . . . Slashing Weapon . | . . . . . . Piercing Weapon 1 | . . . . . 1 Special Melee Weapon . | . . . . . . Unidentified Prototypes 2 | . . . . 2 . Parts Lost 11 | . . 1 . . 10 Power 3 | . . 1 . . 2 Propulsion 4 | . . . . . 4 Utility 1 | . . . . . 1 Weapon 3 | . . . . . 3 Highest Loss Streak 9 | . . 1 . . 9 To Critical Strikes 1 | . . . . . 1 Average Slot Usage (%) 98 | . 100 96 100 100 89 Engine 10 | . 14 10 11 11 6 Leg 31 | . 28 30 33 33 28 Device 11 | . 14 12 11 11 8 Storage 11 | . 14 11 11 11 11 Processor 10 | . . 8 11 11 11 Energy Gun 11 | . 14 11 11 11 11 Ballistic Cannon 9 | . . 8 11 11 7 Naked Turns . | . . . . . . Heaviest Build 29 | 12 12 18 22 26 29 Greatest Support 45 | 20 20 45 45 45 45 Greatest Overweight (x) 2 | 2 . . . . 1 Average Overweight (x) . | . . . . . . Largest Inventory Capacity 10 | 8 8 8 10 10 10 Average Capacity 9 | 7 8 8 8 10 10 Most Carried 10 | 6 6 8 8 10 10 Average Carried 8 | 3 6 7 8 9 9 Final Capacity 10 | 8 8 8 10 10 10 Final Carried 10 | 6 6 8 8 10 10 Class Distribution -------------------- 100% | Mutant Dominant Class ---------------- Mutant | -10/Materials Mutant | -9/Materials Mutant | -9/Mines Mutant | -7/Zion Mutant | -6/Proximity Caves Resources | -11 -10 -9 -9 -7 -6 ----------- Run | Scr Mat Mat Min Zio Pro Matter Collected 724 | 274 . 155 20 15 260 Remotely . | . . . . . . Salvage Created 646 | 48 . 237 34 . 327 Parts 37 | 6 . 20 . . 11 Haulers Intercepted . | . . . . . . Recyclers Shooed . | . . . . . . Parts Field Recycled . | . . . . . . Retrieved Matter . | . . . . . . Parts Self-Destructed 22 | . . . . . 22 Prevented . | . . . . . . Kills | -11 -10 -9 -9 -7 -6 ------- Run | Scr Mat Mat Min Zio Pro Combat Hostiles Destroyed 16 | . . 5 . . 11 Guns 8 | . . 3 . . 5 Cannons 4 | . . 2 . . 2 AOE 4 | . . . . . 4 Classes Destroyed 6 | 1 . 3 . . 2 Tunneler 2 | 2 . . . . . Watcher 1 | . . 1 . . . Swarmer 4 | . . . . . 4 Grunt 9 | . . 3 . . 6 Duelist 1 | . . . . . 1 Sentry 2 | . . 2 . . . Best Kill Streak 8 | 2 . 2 . . 8 Combat Bots Only 8 | . . 2 . . 8 Max Kills in Single Turn 2 | 1 . 1 . . 2 Gunslinging . | . . . . . . Exploded 2 | . . . . . 2 Melee . | . . . . . . Uniques/NPCs Destroyed . | . . . . . . Combat | -11 -10 -9 -9 -7 -6 -------- Run | Scr Mat Mat Min Zio Pro Damage Taken 1877 | . . 303 . . 1574 Core 406 | . . 73 . . 333 Absorbed by Shields . | . . . . . . Core Remaining (%) 100 | 100 100 . . . . Volleys Fired 56 | 4 . 17 2 1 32 Largest 2 | 2 . 2 2 1 2 Hottest 107 | 70 . 107 107 44 107 Shots Fired 93 | 8 . 34 4 1 46 Gun 58 | 8 . 27 2 . 21 Cannon 32 | . . 7 2 1 22 Launcher 3 | . . . . . 3 Special . | . . . . . . Kinetic 46 | 4 . 17 2 1 22 Thermal 44 | 4 . 17 2 . 21 Explosive 3 | . . . . . 3 Electromagnetic . | . . . . . . Robot Hit Streak 10 | 4 . 10 3 . 6 Robot Miss Streak 3 | 1 . 2 1 . 3 Penetration Max . | . . . . . . Secondary Targets . | . . . . . . Shots Hit Robots 58 | 6 . 25 3 . 24 Core Hits 35 | 3 . 9 1 . 22 Critical Kills . | . . . . . . Critical Parts Destroyed . | . . . . . . Critical Strikes 4 | . . 1 . . 3 Burn 3 | . . 1 . . 2 Blast 1 | . . . . . 1 Melee Attacks 1 | . . . . . 1 Impact . | . . . . . . Slashing . | . . . . . . Piercing 1 | . . . . . 1 Sneak Attacks . | . . . . . . Combat Hostiles . | . . . . . . Follow-up Attacks . | . . . . . . Damage Inflicted 1700 | 70 . 378 75 . 1177 Guns 522 | 70 . 248 17 . 187 Cannons 468 | . . 130 45 . 293 Explosions 691 | . . . . . 691 Melee . | . . . . . . Ramming 19 | . . . 13 . 6 Kinetic 560 | 32 . 190 45 . 293 Thermal 430 | 38 . 188 17 . 187 Explosive 691 | . . . . . 691 Electromagnetic . | . . . . . . Impact . | . . . . . . Slashing . | . . . . . . Piercing . | . . . . . . Highest Corruption . | . . . . . . Average Corruption . | . . . . . . Corruption Purged . | . . . . . . Corruption Blocked . | . . . . . . Overload Shots . | . . . . . . Overflow Damage 14 | . . . . . 14 Projectiles 12 | . . . . . 12 Explosions 2 | . . . . . 2 Melee . | . . . . . . Knockbacks 8 | . . 1 1 . 6 Impact . | . . . . . . Kinetic 7 | . . 1 1 . 5 Secondary 1 | . . . . . 1 Self-Inflicted Damage . | . . . . . . Shots . | . . . . . . Rammed . | . . . . . . Targets Rammed 6 | . . . 3 . 3 Kicked 6 | . . . 3 . 3 Crushed . | . . . . . . Highest Temperature 342 | 50 . 168 12 . 342 Average Temperature 105 | 24 . 54 7 . 145 Received Heat Transfer 603 | . . 126 . . 477 Effects 1 | . . . . . 1 Energy Bleed 1 | . . . . . 1 Siege Activations . | . . . . . . Robots Corrupted . | . . . . . . Combat Hostiles . | . . . . . . Parts Fried . | . . . . . . Impact Corruptions . | . . . . . . Robots Melted . | . . . . . . Combat Hostiles . | . . . . . . Parts Melted . | . . . . . . Heat Transferred 1258 | 111 . 555 37 . 555 Parts Sabotaged . | . . . . . . Parts Stolen . | . . . . . . Parts Stripped . | . . . . . . Power Chain Reactions . | . . . . . . Missiles Intercepted . | . . . . . . Alert | -11 -10 -9 -9 -7 -6 ------- Run | Scr Mat Mat Min Zio Pro Peak Influence 226 | 10 53 226 31 . . Initial 26 | . 6 22 26 . . Average 47 | 2 34 88 15 . . Maximum Alert Level 1 | . . 1 . . . Low Security (%) 97 | 100 100 93 100 . . Level 1 2 | . . 6 . . . Level 2 . | . . . . . . Level 3 . | . . . . . . Level 4 . | . . . . . . Level 5 . | . . . . . . High Security . | . . . . . . Max Security . | . . . . . . Squads Dispatched 4 | . 1 2 . . 1 Investigation 2 | . 1 . . . 1 Extermination . | . . . . . . Reinforcement 2 | . . 2 . . . Assault . | . . . . . . Garrison . | . . . . . . Intercept . | . . . . . . Searches Triggered . | . . . . . . Construction Impeded . | . . . . . . Haulers Reinforced . | . . . . . . Active Scanning Responses . | . . . . . . Cargo Convoy Interrupts . | . . . . . . Stealth | -11 -10 -9 -9 -7 -6 --------- Run | Scr Mat Mat Min Zio Pro Distress Signals 1 | . . 1 . . . Communications Jammed . | . . . . . . Distress Signals . | . . . . . . Times Spotted 36 | . 2 14 . . 20 Peak Tracking Total 12 | . 2 7 . . 12 Tactical Retreats 1 | . . 1 . . . Traps | -11 -10 -9 -9 -7 -6 ------- Run | Scr Mat Mat Min Zio Pro Traps Triggered . | . . . . . . Indirectly . | . . . . . . Trap Hack Attempts . | . . . . . . Triggered . | . . . . . . Disarmed . | . . . . . . Reprogrammed . | . . . . . . Reused . | . . . . . . Traps Extracted . | . . . . . . Installed 1 | . . . 1 . . Triggered . | . . . . . . Machines | -11 -10 -9 -9 -7 -6 ---------- Run | Scr Mat Mat Min Zio Pro Machines Disabled 3 | . . . . . 3 Max in Single Turn 1 | . . . . . 1 Machines Sabotaged . | . . . . . . Garrisons Compromised . | . . . . . . Overloaded Fab Kills . | . . . . . . Hacking | -11 -10 -9 -9 -7 -6 --------- Run | Scr Mat Mat Min Zio Pro Machines Accessed 8 | . 3 4 . . 1 Terminals 7 | . 3 3 . . 1 Fabricators . | . . . . . . Repair Stations . | . . . . . . Recycling Units . | . . . . . . Scanalyzers 1 | . . 1 . . . Garrison Access . | . . . . . . Total Hacks 21 | . 8 9 . . 4 Successful 16 | . 4 8 . . 4 Failed 5 | . 4 1 . . . Catastrophic 1 | . 1 . . . . Database Lockouts . | . . . . . . Manual 7 | . 4 3 . . . Terminals 17 | . 8 5 . . 4 Fabricators . | . . . . . . Repair Stations . | . . . . . . Recycling Units . | . . . . . . Scanalyzers 4 | . . 4 . . . Garrison Access . | . . . . . . Terminal Hacks 11 | . 4 3 . . 4 Record 6 | . . 2 . . 4 Part Schematic 1 | . 1 . . . . Prototype ID Bank 2 | . 2 . . . . Branch Access Points 1 | . . 1 . . . Zone Layout 1 | . 1 . . . . Fabricator Hacks . | . . . . . . Repair Station Hacks . | . . . . . . Recycling Unit Hacks . | . . . . . . Scanalyzer 4 | . . 4 . . . Insert Component 2 | . . 2 . . . Analyze 2 | . . 2 . . . Garrison Access Hacks . | . . . . . . Unauthorized Hacks 1 | . . 1 . . . Terminals 1 | . . 1 . . . Botnet 1 | . . 1 . . . Fabricators . | . . . . . . Repair Stations . | . . . . . . Recycling Units . | . . . . . . Scanalyzers . | . . . . . . Garrison Access . | . . . . . . Data Cores Recovered . | . . . . . . Used . | . . . . . . Hacking Detections 4 | . 2 1 . . 1 Full Trace Events 2 | . 1 . . . 1 Feedback Events . | . . . . . . Feedback Blocked . | . . . . . . Robot Schematics Acquired 4 | . . . . 4 . Robots Built . | . . . . . . Authchips . | . . . . . . Time . | . . . . . . Total Robot Build Rating . | . . . . . . Part Schematics Acquired 18 | . 1 2 . 15 . Parts Built . | . . . . . . Authchips . | . . . . . . Time . | . . . . . . Total Part Build Rating . | . . . . . . Parts Repaired . | . . . . . . Time . | . . . . . . Parts Recycled . | . . . . . . Recycled Matter . | . . . . . . Retrieved Matter . | . . . . . . Retrieved Components . | . . . . . . Parts Scanalyzed 2 | . . 2 . . . Part Schematics Acquired 2 | . . 2 . . . Parts Damaged . | . . . . . . Bothacking | -11 -10 -9 -9 -7 -6 ------------ Run | Scr Mat Mat Min Zio Pro Used RIF Installer . | . . . . . . Robots Hacked . | . . . . . . Non-combat . | . . . . . . Combat . | . . . . . . Robot Hacks Applied . | . . . . . . Relay Couplers Released . | . . . . . . Fabnet Peak Effective % . | . . . . . . Robots Rewired . | . . . . . . Allies Hacked . | . . . . . . Hacks Repelled . | . . . . . . Allies | -11 -10 -9 -9 -7 -6 -------- Run | Scr Mat Mat Min Zio Pro Total Allies 8 | . . . . 8 . Largest Group 8 | . . . . 8 8 Highest-Rated Group 205 | . . . . 205 205 Highest-Rated Ally 39 | . . . . 39 39 Total Orders . | . . . . . . Ally Attacks 66 | . . . . . 66 Total Damage 802 | . . . . . 802 Kills 9 | . . . . . 9 Allies Corrupted . | . . . . . . Allies Melted . | . . . . . . Intel | -11 -10 -9 -9 -7 -6 ------- Run | Scr Mat Mat Min Zio Pro Robot Analysis Total . | . . . . . . Derelict Logs Recovered 6 | . . . 3 3 . Drone Launches . | . . . . . . Drone Recoveries . | . . . . . . Exploration | -11 -10 -9 -9 -7 -6 ------------- Run | Scr Mat Mat Min Zio Pro Turns Passed 3777 | 95 96 646 662 1757 521 Spaces Moved 2823 | 55 81 458 529 1401 299 Core 15 | 15 . . . . . Treads 27 | . . 27 . . . Legs 2781 | 40 81 431 529 1401 299 Wheels . | . . . . . . Hover . | . . . . . . Flight . | . . . . . . Fastest Speed 50 | 50 120 120 120 120 120 Average Speed 120 | 123 120 122 120 120 120 Slowest Speed 190 | 190 120 160 120 120 190 Overloaded Moves . | . . . . . . Propulsion Burnouts . | . . . . . . Robots Hopped . | . . . . . . Cave-ins Triggered . | . . . . . . Exploration Rate (%) 46 | 5 22 38 91 89 36 Regions Visited 5 Branch Regions 3 Pre-discovered Areas 1 | . . . . 1 . Known Exits Taken 1 | . . 1 . . . Unknown Exits Taken 4 | 1 1 . 1 1 . Scrap Searched 8 | . . . 3 5 . Spaces Dug . | . . . . . . Terrain Destroyed 22 | . . 1 . . 21 Melee . | . . . . . . Projectile 1 | . . 1 . . . AOE 21 | . . . . . 21 Terrain Rammed . | . . . . . . Walls Destroyed . | . . . . . . Machines Disabled . | . . . . . . Actions | -11 -10 -9 -9 -7 -6 --------- Run | Scr Mat Mat Min Zio Pro Total 3102 | 71 80 515 552 1477 407 Wait 138 | . . 12 15 58 53 Move 2818 | 54 80 457 528 1400 299 Hop . | . . . . . . Pick Up 23 | 6 . 7 . 7 3 Fast Attach 19 | 7 . 5 . 2 5 Attach 6 | . . 1 . . 5 Detach 1 | . . . . . 1 Swap 11 | . . 5 1 2 3 Drop 21 | . . 11 1 7 2 Fire 56 | 4 . 17 2 1 32 Melee 1 | . . . . . 1 Ram . | . . . . . . Kick 6 | . . . 3 . 3 Crush . | . . . . . . Escape Stasis . | . . . . . . Rewire 1 | . . . 1 . . Trap 1 | . . . 1 . . Miscellaneous . | . . . . . . Route ------- -11/Scrapyard -10/Materials (discovered 2 exits: *Mat / [*Min]) -9/Materials (discovered 2 exits: [*Mat] / *Min) -9/Mines (discovered 2 exits: [*Mat] / [*Zio]) -7/Zion -6/Proximity Caves History --------- Turn | Location | Event 2 | -11/Scrapyard | Met Revision 17 6 | -11/Scrapyard | Discovered new exit (range 16) 96 | -11/Scrapyard | Entered Materials 122 | -10/Materials | Discovered new exit (range 16) 149 | -10/Materials | Discovered new exit (range 13) 192 | -10/Materials | Entered another Materials area 192 | -9/Materials | Evolved 2 slots: Propulsion x1, Utility x1 307 | -9/Materials | Build established: Mutant 536 | -9/Materials | Discovered new exit (range 7) 722 | -9/Materials | Identified exit to Mines 838 | -9/Materials | Entered Mines 856 | -9/Mines | Learned Materials terminal intel 988 | -9/Mines | Learned Materials stockpile data 1048 | -9/Mines | Learned 2 Materials zone layouts 1093 | -9/Mines | Found a hidden stash of uninstalled traps 1345 | -9/Mines | A Derelict revealed a hidden shortcut to a safe place 1409 | -9/Mines | Discovered new exit (range 12) 1500 | -9/Mines | Entered Zion 1622 | -7/Zion | Found GAL Module 1665 | -7/Zion | Discovered new exit (range 15) 1670 | -7/Zion | Given the Hacking Drone Bay 1670 | -7/Zion | Found Prototype Device 2075 | -7/Zion | Gained Derelict followers 2169 | -7/Zion | Learned location of Quarantine (-3) 2232 | -7/Zion | Found CR-A16's Pointy Stick 2406 | -7/Zion | Given A8's code to call for help 2553 | -7/Zion | Gained Derelict followers 2776 | -7/Zion | Learned location of 1 exit from Factory 2782 | -7/Zion | Found Prototype Device 2782 | -7/Zion | Identified Mobile Refinery Mk. CCLXVII 3222 | -7/Zion | Identified Hacking Drone Bay 3257 | -7/Zion | Entered Proximity Caves 3257 | -6/Proximity Caves | Accompanied by 8 allies 3280 | -6/Proximity Caves | Attracted the attention of an 0b10 checkpoint 3570 | -6/Proximity Caves | Attracted the attention of an 0b10 base 3603 | -6/Proximity Caves | Core integrity fell below 50% 3625 | -6/Proximity Caves | Core integrity fell below 20% 3627 | -6/Proximity Caves | Destroyed 8 combat bots 3651 | -6/Proximity Caves | Lost 9 parts (2p3n1u3w) 3704 | -6/Proximity Caves | Learned location of 2 exits from Upper Caves 3778 | -6/Proximity Caves | Destroyed by H-66 Slayer with Gauss Rifle Last Messages --------------- 03716_ Storage Shell breached. 03719_ Dropped Field Laser. 03722_ Acquired Plasma Rifle. 03742_ The unstable cave ceiling collapses. 03743_ Acquired 12 matter. 03744_ Acquired 5 matter. 03745_ Acquired 1 matter. 03754_ Penetrated by Slug. 03759_ Slug penetrates K1-27X(g). 03759_ K1-27X(g) destroyed. 03764_ Penetrated by Slug. 03771_ Slug penetrates Wall. 03771_ Penetrated by Slug. 03772_ The unstable cave ceiling collapses. 03774_ Penetrated by Slug. 03775_ Kicked H-66 Slayer. 03777_ Penetrated by Slug. 03777_ Carbon-fiber Leg destroyed. 03777_ Kicked H-66 Slayer. 03778_ Penetrated by Slug. Map ----- +----------------------------------------------------+ | ?????????????????????????????????????????????????? | | ?????????????????????????????????????????????????? | | ?????????????????????????????????????????????????? | | ?????????????????????????????????????????????????? | | ?????????????????????????????????????????????????? | | ?????????????????????????????????????????????????? | | ?????????????????????????????????????????????????? | | ?????????????????????????????????????????????????? | | ?????????????????????????????????????????????????? | | ?????????????????????????????????????????????????? | | ?????????????????????????????????????????????????? | | ????????????????? ?????????? ????????????????????? | | ????????????????? ?????? ????????????????????? | | ????????????????? ?? ????????????????????? | | ????????????????? ??? ????????????????????? | | ????????????????? #??# #????????????????????? | | ????????????????? ### ????????????????????? | | ????????????##### ????????????????????? | | ????????????? ##???????????????????? | | ?????????????? ? #???????????????????? | | ?????????????? ??? #???????????????????? | | ?????????######+"#"###### ????????????????????? | | ?????????#"""T " "% # ?????????????????????? | | ?????????#"" # #?????????????????????? | | ?????????#" % #hh#?????????????????????? | | ?????????#" # ## ##@ #?????????????????????? | | ????? #??#" % % % # #?????????????????????? | | ????? ?#" %% ; #?????????????????????? | | ????? # +% #?????????????????????? | | ????? + #* #?????????????????????? | | ??????? + % #?????????????????????? | | ?????????# #?????????????????????? | | ?????????# [ " #?????????????????????? | | ??????#" " % % #?????????????????????? | | ###??# " # #?????????????????????? | | ?# " %# # #?????????????????????? | | # ########++## # #?????????????????????? | | ?# %% #####?????????????????? | | ??# ## ##????????????????? | | ??##### ############### #????????????????? | | ??????##### ###### ##### #????????????????? | | ???????#### ## % % %% ##???????????????? | | ???????# #???????????????? | | ??????# ## " ! ### ## ####???????????????? | | ??? #?####%"% ##?# ###%#??????????????????? | | ?# ????##" =##?### ## ####???????????????? | | ### #??### % #?##% % % #???????????????? | | ### ###??## % #?# # #???????????????? | | #####?##### /% #?#%% %# ### #???????????????? | | #????# ## *%= #### % %#?# #???????????????? | +----------------------------------------------------+ Best States ------------- Heat Dissipation 42 Energy Generation 18 Energy Capacity 310 Matter Stores 300 Matter Capacity 300 Sight Range 16 Terrain Scan Density 10 Evasion (%) 55 Targeting Accuracy 6 Recoil Reduction 1 Item Schematics ----------------- Med. Storage Unit | -10/Materials | Hacked Com. Wheel | -9/Materials | Scanalyzed Lgt. Ion Engine | -9/Materials | Scanalyzed Med. Treads | -7/Zion | Archive Focal Shield | -7/Zion | Archive Imp. Cryofiber Web | -7/Zion | Archive Imp. Trap Extractor | -7/Zion | Archive Enh. Optical Array | -7/Zion | Archive Matter Filter | -7/Zion | Archive Imp. Transmission Jammer | -7/Zion | Archive Gatling Laser | -7/Zion | Archive Fusion Compressor | -7/Zion | Archive Mak. Thermal Plating | -7/Zion | Archive Hvy. Flak Cannon | -7/Zion | Archive Core Analyzer | -7/Zion | Archive 0b10 Decoder Chip [Skirmisher] | -7/Zion | Archive Imp. Carbon-fiber Leg | -7/Zion | Archive Remote Force Field | -7/Zion | Archive Robot Schematics ------------------ B-48 Gladiator | -7/Zion | Archive L-41 Fighter | -7/Zion | Archive S-27 Virus | -7/Zion | Archive G-73 Enforcer | -7/Zion | Archive Fabricated ------------ Nothing Alien Tech Used ----------------- None Achievements -------------- None Challenges ------------ None Game ------ Seed PhasingFortressExpander Manual? 0 Play Time 00:35:24 Cumulative 113.7 hours Start 2022.03.29 @ 01:32:50 End 2022.03.29 @ 02:08:41 Sessions 1 Manual Loads 0 Difficulty Rogue Special Mode None Game No. 84 Rogue 67 Adventurer 6 Explorer 11 Win Type - Total 8 Types 5/0/1/1/0/0/1/0/0 Lore% 71 Gallery% 74 Achievement% 59 Wizard Run 0 Options --------- ASCII 0 Keyboard 0 Movement Numpad Keybinds 0 Fullscreen 1 Font 12/Fuzzy Map View 83x54 Tactical HUD 1 Map Filters NONE Filters NONE Steam 1 RUN: c418075d-fdf4-4c04-a936-9ea558d989da